Workbook

Sheet Anleitung
B1: Ein RSA-Schlüssel ist ein öffentlicher Schlüssel. Jeder kann ihn benutzen, um mir Nachrichten zu schreiben.
B2: Nur ich kenne den privaten Schlüssel, um deine Nachricht zu entschlüsseln.
B5: Bedienungsanleitung:
B7: Klicke dich durch:
B9: Ansicht
C10: Makros
D11: Verschlüsseln
E12: Ausführen
B14: Trage im Fenster deinen Text ins weiße Feld ein.
B15: Bestätige mit OK/Enter.
B16: Gib ggf. weiteren Text ein und bestätige jeweils mit OK/Enter.
B17: Sobald mit OK/Enter bestätigt wird, ohne dass ein Text eingegeben wurde, wird die Verschlüsselung abgeschlossen.
B18: Das Makro erzeugt ein neues Blatt mit der Verschlüsselung.
B19: Schicke nur diese Seite/Spalte an
B20: geo-claus@t-online.de
B23: Funktionsweise:
B25: Du brauchst die Funktionsweise nicht zu kennen;
B26: falls du sie wissen willst: Sie ist kein Geheimnis.
B29: Zeichen zu Zahlen:
B31: Zunächst werden alle Zeichen in zweistellige Zahlen umgewandelt.
B32: Einschl. Leerzeichen können 116 Zeichen umgesandelt werden.
B33: Jeweils 3 aufeinander folgende Zahlen werden zu einer 6-stelligen Zahl zusammengefasst.
C35: x0 | D35: x1 | E35: x2 | F35: x3 | G35: x4 | H35: x5 | I35: x6 | J35: x7 | K35: x8 | L35: x9
B36: 0x | E36: ( | F36: ) | G36: * | H36: . | I36: : | J36: - | K36: , | L36: /
B37: 1x | C37: 0 | D37: 1 | E37: 2 | F37: 3 | G37: 4 | H37: 5 | I37: 6 | J37: 7 | K37: 8 | L37: 9
B38: 2x | D38: a | E38: b | F38: c | G38: d | H38: e | I38: f | J38: g | K38: h | L38: i
B39: 3x | C39: j | D39: k | E39: l | F39: m | G39: n | H39: o | I39: p | J39: q | K39: r | L39: s
B40: 4x | C40: t | D40: u | E40: v | F40: w | G40: x | H40: y | I40: z | J40: ä | K40: ö | L40: ü
B41: 5x | C41: ß | D41: A | E41: B | F41: C | G41: D | H41: E | I41: F | J41: G | K41: H | L41: I
B42: 6x | C42: J | D42: K | E42: L | F42: M | G42: N | H42: O | I42: P | J42: Q | K42: R | L42: S
B43: 7x | C43: T | D43: U | E43: V | F43: W | G43: X | H43: Y | I43: Z | J43: Ä | K43: Ö | L43: Ü
B44: 8x | C44: æ | D44: ø | E44: å
B46: 20 | D46: Leertaste, Leerfeld
B48: Für die letzten 33 Zeichen gibt es zwei Tabellen.
C50: x0 | D50: x1 | E50: x2 | F50: x3 | G50: x4 | H50: x5 | I50: x6 | J50: x7 | K50: x8 | L50: x9
B51: 8x | F51: ^ | G51: < | H51: = | I51: > | J51: + | K51: ± | L51: ÷
B52: 9x | C52: % | D52: ‰ | E52: ~ | F52: $ | G52: € | H52: ° | I52: \ | J52: # | K52: | | L52: §
B54: Wenn bei einer 3-er-Folge mindestens 1 Zeichen aus der nachfolgenden Tabelle vorkommt,
B55: wird vor die 6-stellige Zahl eine 1 hinzugefügt.
B57: 89 | C57: Alle Zeichen, die nicht in den Tabellen vorkommen, werden mit 89 verschlüsselt
C58: z.B. " oder ',
C59: und werden bei der Entschlüsselung nicht differenziert.
C61: x0 | D61: x1 | E61: x2 | F61: x3 | G61: x4 | H61: x5 | I61: x6 | J61: x7 | K61: x8 | L61: x9
B62: 8x | F62: Æ | G62: Ø | H62: Å | I62: é | J62: É | K62: @
B63: 9x | C63: [ | D63: ] | E63: { | F63: } | G63: ! | H63: ? | I63: ; | J63: & | K63: † | L63: _
B65: In einer 3-er-Folge können nicht Zeichen aus beiden Zusatztabellen vorkommen.
B66: Ggf. muss schon nach einer 1- oder 2-er-Folge mit einer neuen Folge begonnen werden.
B68: Das Makro addiert bei 3-er-Folgen mit einem Ergebnis unter 100.000 zwei Millionen hinzu;
B69: so ist das Ergebnis einer Folge immer 6- bis 7-stellig.
B72: RSA-Verschlüsselung:
B74: Jeder der 6- bis 7-stelligen Zahlen wird verschlüsselt:
B76: x ^5 / 2358481 = y Rest z
B78: y interessiert überhaupt nicht und wird ignoriert.
B79: z, der Rest also, wird dem Empfänger der Nachricht mitgeteilt.
B81: 2358481 ist das Produkt aus zwei größeren Primzahlen (p * q).
B83: Von p und q wird jeweils 1 abgezogen und diese Ergebnisse werden ebenfalls multipliziert.
B84: Zu diesem Produkt wird 1 hinzu addiert.
B85: (p - 1)*(q - 1) + 1
B87: Dieses Ergebnis wird in die Primfaktoren zerlegt.
B89: Einer dieser Primfaktoren ist 5; die Hochzahl, mit der x potenziert wird.
B91: Das Produkt aus den übrigen Primfaktoren ist die (geheime) Hochzahl,
B92: die für die Entschlüsselung benötigt wird.
B93: z ^ h / 2358481 = y[dekrypt] Rest z[dekrypt].
B95: Natürlich lässt sich mit dieser Kenntnis auch der private Schlüssel ermitteln.
B96: Es ist aber wesentlich leichter, 2 große Primzahlen zu finden und zu multiplizieren,
B97: als dieses Produkt in 2 Primzahlen zu zerlegen.
B100: Rechnen mit großen Zahlen:
B102: Beim Rechnen mit großen Potenzen kommen wir schnell an die Grenzen der Möglichkeiten des Computers.
B104: Aber bei unserer Rechnung ist ja nur ein Teil vom Ergebnis wichtig, nämlich nur der Rest.
B105: Wenn wir unsere Potenzierung in einzelne Schritte zerlegen
B106: und nach jedem Schritt lediglich mit dem Rest fortfahren,
B107: kommen wir zum gleichen Ergebnis.
B109: Ein Beispiel mit kleineren Zahlen: | M109: 31 ^ 5 = | N109: 28629151 | Q109: 28629151/143= | R109: 200203.8531 | S109: Rest | T109: 122
M111: 31^2= | N111: 961 | Q111: 961/143= | R111: 6.72027972 | S111: Rest | T111: 103
M112: 103 ^2 = | N112: 10609 | Q112: 10609/143= | R112: 74.18881119 | S112: Rest | T112: 27
M113: 27 * 31 = | N113: 837 | Q113: 837/143= | R113: 5.853146853 | S113: Rest | T113: 122
B114: Bei beiden Rechenwegen
B115: ist der Rest 122.
B118: Beispiel für Ver- und Entschlüsselung mit anderem Schlüssel:
B120: Das Blatt 8249 5 enthält eine RSA-Verschlüsselung.
B121: Im gelben Feld gibst du die Zahl ein, die geschlüsselt werden soll.
B122: Im roten und im blauen Feld erhältst du die Ergebnisse.
B124: Da darfst also nur in das gelbe Feld eine Zahl hineinschreiben.
B126: Das Makro greift auf das Blatt 2358418 5 zu.
B127: Auch auf dieser Seite darfst du nur in das gelbe Feld eine Zahl hineinschreiben,
B128: im blauen Feld erscheint die verschlüsselte Zahl.

Sheet Ergebnis

Sheet 2358481 5
A1: Eingabe: | B1: 232805 | C1: 1 | D1: =B1 -> 232805
A2: krypt | B2: =D4 -> 1691036 | C2: 2 | D2: =MOD(D1^2,$B$23) -> 274645
C3: 4 | D3: =MOD(D2^2,$B$23) -> 936683
C4: 5 | D4: =MOD(D3*D1,$B$23) -> 1691036
B9: 1691036
A23: n | B23: 2358481
A29: Faktoren | B29: 5
B30: 471053

Sheet 8249 5
A1: p | B1: q | C1: n | F1: p-1 | G1: q-1 | H1: Produkt | I1: Faktoren
A2: 73 | B2: 113 | C2: =A2*B2 -> 8249 | F2: 72 | G2: 112 | H2: =F2*G2 -> 8064 | I2: 5;1613
A5: Urzahl | B5: 1039
A6: krypt | B6: =D11 -> 3657
A7: dekrypt | B7: =L15 -> 3000 | D7: =B5 -> 1039 | E7: R1 | F7: =B5 -> 1039 | G7: R1 | H7: =MOD(F10^2,8249) -> 2020 | I7: R10 | J7: =MOD(H10^2,8249) -> 2345 | K7: R100 | L7: =MOD(J10^2,8249) -> 4663 | M7: R1000
D8: =MOD(D7*$D$7, 8249) -> 7151 | E8: R2 | F8: =MOD(F7^2,8249) -> 7151 | G8: R2 | H8: =MOD(H7^2,8249) -> 5394 | I8: R20 | J8: =MOD(J7^2,8249) -> 5191 | K8: R200 | L8: =MOD(L7^2,8249) -> 7454 | M8: R2000
D9: =MOD(D8*$D$7, 8249) -> 5789 | E9: R3 | F9: =MOD(F8^2,8249) -> 1250 | G9: R4 | H9: =MOD(H8^2,8249) -> 1013 | I9: R40 | J9: =MOD(J8^2,8249) -> 5247 | K9: R400 | L9: =MOD(L8^2,8249) -> 5101 | M9: R4000
D10: 1250 | E10: R4 | F10: =MOD(F9*F7,8249) -> 3657 | G10: R5 | H10: =MOD(H9*H7,8249) -> 508 | I10: R50 | J10: =MOD(J9*J7,8249) -> 4956 | K10: R500 | L10: =MOD(L9*L7,8249) -> 4096 | M10: R5000
D11: 3657 | E11: R5 | F11: =MOD(F9^2,8249) -> 3439 | G11: R8 | H11: =MOD(H9^2,8249) -> 3293 | I11: R80 | J11: =MOD(J9^2,8249) -> 4096 | K11: R800 | L11: =MOD(L9^2,8249) -> 2855 | M11: R8000
F12: =MOD(F10^2,8249) -> 2020 | G12: R10 | H12: =MOD(H10^2,8249) -> 2345 | I12: R100 | J12: =MOD(J10^2,8249) -> 4663 | K12: R1000 | L12: =MOD(L10^2,8249) -> 6999 | M12: R10000
F14: =MOD(F7*F8,8249) -> 5789 | G14: R3 | H14: =H7 -> 2020 | I14: R10 | J14: =MOD(J7*J10,8249) -> 7228 | K14: R600 | L14: =L7 -> 4663 | M14: R1000
H15: =MOD(F14*H14,8249) -> 4947 | I15: R13 | J15: =MOD(H15*J14,8249) -> 5750 | K15: R613 | L15: =MOD(J15*L14,8249) -> 3000 | M15: R1613
